[Event "DFMMLV 2019"]
[Site "Braunfels"]
[Date "2019.06.21"]
[Round "2.23"]
[White "Woniak, Katarzyna"]
[Black "Alhassan, Jodi"]
[Result "1-0"]
[ECO "D13"]
[WhiteElo "1915"]
[BlackElo "1108"]
[Annotator "NA RC"]
[PlyCount "53"]
[EventDate "2019.06.20"]
[EventType "team-tourn"]
[EventCountry "GER"]
[SourceTitle "playchess.com"]
[Source "ChessBase"]
[SourceQuality "1"]
[WhiteTeam "Bayern 1"]
[BlackTeam "Saarland"]
[TimeControl "40/5400+30:1800+30"]

1. d4 {[%emt 0:00:00]} d5 {[%emt 0:00:00]} 2. c4 {[%emt 0:00:00]} c6 {[%emt 0:00:00]} 3. cxd5 {[%emt 0:02:23]} cxd5 {[%emt 0:00:20]} 4. Nc3 {[%emt 0:00:11]} Nf6 {[%emt 0:01:36]} 5. Nf3 {[%emt 0:00:58]} Nc6 {[%emt 0:01:10]} 6. g3 {[%emt 0:09:56]} Bg4 {[%emt 0:08:45]} 7. Bg2 {[%emt 0:02:58]} e6 {[%emt 0:07:41]} 8. O-O {[%emt 0:00:10]} Be7 {[%emt 0:01:31]} 9. e3 {[%emt 0:12:15]} O-O {[%emt 0:18:20]} 10. b3 {[%emt 0:00:29]} Bb4 {[%emt 0:04:36]} 11. Ne2 {[%emt 0:04:48]} Ne4 {[%emt 0:21:03]} 12. h3 {[%emt 0:02:14]} Nc3 {[%emt 0:08:36]} 13. Nxc3 {[%emt 0:01:42]} Bxc3 {[%emt 0:00:35]} 14. hxg4 {[%emt 0:09:05]} Bxa1 {[%emt 0:00:27]} 15. Ba3 {[%emt 0:00:08]} Bc3 {[%emt 0:06:20]} 16. Bxf8 {[%emt 0:00:08]} Qxf8 {[%emt 0:01:01]} 17. g5 {[%emt 0:04:24]} Rc8 {[%emt 0:03:00]} 18. Nh2 {[%emt 0:03:27]} Qe7 {[%emt 0:02:54]} 19. Qh5 {[%emt 0:01:59]} Nb4 {[%emt 0:04:06]} 20. a3 {[%emt 0:01:08]} Nc6 {[%emt 0:02:34]} 21. b4 {[%emt 0:02:54]} a6 {[%emt 0:01:46]} 22. Rb1 {[%emt 0:01:55]} b5 {[%emt 0:01:59]} 23. Bf1 {[%emt 0:03:13]} g6 {[%emt 0:01:53]} 24. Qh4 {[%emt 0:02:19]} Rc7 {[%emt 0:00:30]} 25. Ng4 {[%emt 0:00:54]} Kf8 {[%emt 0:00:44]} 26. Nf6 {[%emt 0:02:53]} h5 {[%emt 0:00:54]} 27. gxh6 {[%emt 0:00:20]} 1-0

[Event "DFMMLV 2019"]
[Site "Braunfels"]
[Date "2019.06.21"]
[Round "2.25"]
[White "Braeutigam, Irina"]
[Black "Hess, Olena"]
[Result "1/2-1/2"]
[ECO "A10"]
[WhiteElo "1973"]
[BlackElo "2097"]
[Annotator "NA RC"]
[PlyCount "24"]
[EventDate "2019.06.20"]
[EventType "team-tourn"]
[EventCountry "GER"]
[SourceTitle "playchess.com"]
[Source "ChessBase"]
[SourceQuality "1"]
[WhiteTeam "Schleswig Holstein"]
[BlackTeam "NRW"]
[TimeControl "40/5400+30:1800+30"]

1. c4 {[%emt 0:00:00]} d6 {[%emt 0:00:07]} 2. Nc3 {[%emt 0:00:00]} c5 {[%emt 0:00:58]} 3. g3 {[%emt 0:00:00]} Nc6 {[%emt 0:00:21]} 4. Bg2 {[%emt 0:00:08]} g6 {[%emt 0:00:27]} 5. e3 {[%emt 0:01:34]} Bg7 {[%emt 0:00:30]} 6. Nge2 {[%emt 0:00:06]} Nf6 {[%emt 0:08:20]} 7. d4 {[%emt 0:07:22]} cxd4 {[%emt 0:01:03]} 8. Nxd4 {[%emt 0:06:43]} Bd7 {[%emt 0:03:32]} 9. Qd2 {[%emt 0:07:53]} O-O {[%emt 0:01:52]} 10. O-O {[%emt 0:00:29]} Qb6 {[%emt 0:03:44]} 11. b3 {[%emt 0:04:19]} Rfe8 {[%emt 0:06:59]} 12. Bb2 {[%emt 0:01:38]} Qa5 {[%emt 0:11:46]} 1/2-1/2

[Event "DFMMLV 2019"]
[Site "Braunfels"]
[Date "2019.06.21"]
[Round "2.26"]
[White "Plass, Mariana-Camelia"]
[Black "Glinzner, Alva"]
[Result "0-1"]
[ECO "A40"]
[WhiteElo "2042"]
[BlackElo "1833"]
[Annotator "NA RC"]
[PlyCount "90"]
[EventDate "2019.06.20"]
[EventType "team-tourn"]
[EventCountry "GER"]
[SourceTitle "playchess.com"]
[Source "ChessBase"]
[SourceQuality "1"]
[WhiteTeam "NRW"]
[BlackTeam "Schleswig Holstein"]
[TimeControl "40/5400+30:1800+30"]

1. d4 {[%emt 0:00:00]} Nf6 {[%emt 0:00:00]} 2. c4 {[%emt 0:00:00]} e6 {[%emt 0:00:00]} 3. g3 {[%emt 0:00:08]} d5 {[%emt 0:00:00]} 4. Bg2 {[%emt 0:00:09]} Be7 {[%emt 0:00:20]} 5. Nf3 {[%emt 0:00:13]} Nbd7 {[%emt 0:00:33]} 6. O-O {[%emt 0:00:51]} O-O {[%emt 0:00:12]} 7. Qc2 {[%emt 0:00:38]} b6 {[%emt 0:02:32]} 8. Nbd2 {[%emt 0:03:20]} Bb7 {[%emt 0:00:17]} 9. b3 {[%emt 0:01:17]} c5 {[%emt 0:02:30]} 10. Bb2 {[%emt 0:00:06]} Rc8 {[%emt 0:00:46]} 11. Ne5 {[%emt 0:06:36]} Nxe5 {[%emt 0:08:53]} 12. dxe5 {[%emt 0:06:41]} Nd7 {[%emt 0:00:38]} 13. Rad1 {[%emt 0:13:26]} Qc7 {[%emt 0:02:10]} 14. cxd5 {[%emt 0:04:32]} exd5 {[%emt 0:00:40]} 15. Bh3 {[%emt 0:00:23]} Rcd8 {[%emt 0:02:04]} 16. e6 {[%emt 0:00:30]} Nf6 {[%emt 0:08:55]} 17. exf7+ {[%emt 0:00:42]} Kxf7 {[%emt 0:00:21]} 18. Nf3 {[%emt 0:08:41]} Kg8 {[%emt 0:14:45]} 19. Ng5 {[%emt 0:04:30]} d4 {[%emt 0:01:11]} 20. Qc4+ {[%emt 0:01:54]} Kh8 {[%emt 0:00:46]} 21. Bg2 {[%emt 0:09:57]} Bxg2 {[%emt 0:08:20]} 22. Kxg2 {[%emt 0:00:02]} Qc6+ {[%emt 0:00:06]} 23. Kg1 {[%emt 0:00:06]} Nd5 {[%emt 0:00:12]} 24. Nf3 {[%emt 0:03:52]} Qf6 {[%emt 0:01:55]} 25. a3 {[%emt 0:10:02]} Qf5 {[%emt 0:03:17]} 26. Kg2 {[%emt 0:01:22]} Qg6 {[%emt 0:03:10]} 27. Bc1 {[%emt 0:12:21]} Nc3 {[%emt 0:02:08]} 28. Rde1 {[%emt 0:01:19]} Qc6 {[%emt 0:01:43]} 29. Qd3 {[%emt 0:01:42]} b5 {[%emt 0:08:14]} 30. Bf4 {[%emt 0:00:34]} c4 {[%emt 0:02:28]} 31. Qc2 {[%emt 0:03:12]} Bxa3 {[%emt 0:00:51]} 32. Kg1 {[%emt 0:00:12]} Bb4 {[%emt 0:01:14]} 33. Ne5 {[%emt 0:01:32]} Qe6 {[%emt 0:00:46]} 34. bxc4 {[%emt 0:00:35]} bxc4 {[%emt 0:00:26]} 35. h4 {[%emt 0:00:44]} Nd5 {[%emt 0:02:51]} 36. Rb1 {[%emt 0:01:47]} Bc3 {[%emt 0:10:05]} 37. Qc1 {[%emt 0:03:06]} a5 {[%emt 0:04:29]} 38. e4 {[%emt 0:00:53]} dxe3 {[%emt 0:02:06]} 39. Nxc4 {[%emt 0:00:40]} Nxf4 {[%emt 0:00:23]} 40. Qxe3 {[%emt 0:00:28]} Ne2+ {[%emt 0:01:05]} 41. Kh2 {[%emt 0:30:29]} Qxc4 {[%emt 0:30:11]} 42. Rfd1 {[%emt 0:00:00]} Bd4 {[%emt 0:00:00]} 43. Qg5 {[%emt 0:00:00]} Rxf2+ {[%emt 0:00:00]} 44. Kh3 {[%emt 0:00:00]} Qc8+ {[%emt 0:00:00]} 45. g4 {[%emt 0:00:00]} Qc3+ {[%emt 0:00:00]} 0-1

[Event "DFMMLV 2019"]
[Site "Braunfels"]
[Date "2019.06.21"]
[Round "2.27"]
[White "Leib, Britta"]
[Black "Sokolskaja, Victorjja"]
[Result "1/2-1/2"]
[ECO "B10"]
[WhiteElo "1884"]
[BlackElo "1961"]
[Annotator "NA RC"]
[PlyCount "30"]
[EventDate "2019.06.20"]
[EventType "team-tourn"]
[EventCountry "GER"]
[SourceTitle "playchess.com"]
[Source "ChessBase"]
[SourceQuality "1"]
[WhiteTeam "Schleswig Holstein"]
[BlackTeam "NRW"]
[TimeControl "40/5400+30:1800+30"]

1. e4 {[%emt 0:00:00]} c6 {[%emt 0:00:00]} 2. Nf3 {[%emt 0:00:00]} d5 {[%emt 0:00:54]} 3. Nc3 {[%emt 0:00:33]} dxe4 {[%emt 0:01:32]} 4. Nxe4 {[%emt 0:00:29]} Bg4 {[%emt 0:00:36]} 5. h3 {[%emt 0:01:09]} Bh5 {[%emt 0:06:03]} 6. Ng3 {[%emt 0:09:20]} Bxf3 {[%emt 0:00:36]} 7. Qxf3 {[%emt 0:00:04]} Nf6 {[%emt 0:00:38]} 8. Bc4 {[%emt 0:04:56]} e6 {[%emt 0:00:56]} 9. c3 {[%emt 0:05:13]} Qc7 {[%emt 0:06:38]} 10. d4 {[%emt 0:03:22]} Nbd7 {[%emt 0:02:40]} 11. O-O {[%emt 0:13:24]} Bd6 {[%emt 0:01:18]} 12. Re1 {[%emt 0:02:32]} O-O {[%emt 0:04:06]} 13. Nh5 {[%emt 0:09:17]} Nxh5 {[%emt 0:10:58]} 14. Qxh5 {[%emt 0:00:04]} Nf6 {[%emt 0:03:20]} 15. Qh4 {[%emt 0:01:18]} Qd8 1/2-1/2

[Event "DFMMLV 2019"]
[Site "Braunfels"]
[Date "2019.06.21"]
[Round "2.28"]
[White "Sokalskaja, Elena"]
[Black "Gressmann, Hanna"]
[Result "1/2-1/2"]
[ECO "A41"]
[WhiteElo "2014"]
[BlackElo "1840"]
[Annotator "NA RC"]
[PlyCount "86"]
[EventDate "2019.06.20"]
[EventType "team-tourn"]
[EventCountry "GER"]
[SourceTitle "playchess.com"]
[Source "ChessBase"]
[SourceQuality "1"]
[WhiteTeam "NRW"]
[BlackTeam "Schleswig Holstein"]
[TimeControl "40/5400+30:1800+30"]

1. d4 {[%emt 0:00:00]} d6 {[%emt 0:00:00]} 2. Nf3 {[%emt 0:00:00]} Nf6 {[%emt 0:00:00]} 3. g3 {[%emt 0:00:00]} Nbd7 {[%emt 0:00:04]} 4. Bg2 {[%emt 0:00:00]} c6 {[%emt 0:00:23]} 5. c4 {[%emt 0:00:00]} e5 {[%emt 0:00:51]} 6. dxe5 {[%emt 0:01:03]} dxe5 {[%emt 0:00:17]} 7. O-O {[%emt 0:00:04]} Qc7 {[%emt 0:00:58]} 8. Nc3 {[%emt 0:00:03]} Be7 {[%emt 0:01:03]} 9. Qc2 {[%emt 0:01:21]} h6 {[%emt 0:02:46]} 10. b3 {[%emt 0:02:36]} O-O {[%emt 0:04:36]} 11. Bb2 {[%emt 0:06:30]} Re8 {[%emt 0:02:37]} 12. Rfd1 {[%emt 0:04:51]} Bf8 {[%emt 0:03:44]} 13. e3 {[%emt 0:00:52]} a5 {[%emt 0:03:53]} 14. a3 {[%emt 0:03:14]} g6 {[%emt 0:07:46]} 15. Nh4 {[%emt 0:08:33]} Qb6 {[%emt 0:12:27]} 16. Na4 {[%emt 0:03:07]} Qc7 {[%emt 0:02:35]} 17. c5 {[%emt 0:00:42]} Bg7 {[%emt 0:04:58]} 18. Rd2 {[%emt 0:04:07]} Rb8 {[%emt 0:03:30]} 19. Bc3 {[%emt 0:14:39]} Ra8 {[%emt 0:07:17]} 20. Rad1 {[%emt 0:01:55]} b5 {[%emt 0:05:15]} 21. cxb6 {[%emt 0:00:36]} Nxb6 {[%emt 0:00:19]} 22. Nc5 {[%emt 0:01:51]} Nbd5 {[%emt 0:02:41]} 23. Bb2 {[%emt 0:00:52]} Qe7 {[%emt 0:03:53]} 24. e4 {[%emt 0:03:17]} Nb6 {[%emt 0:02:38]} 25. Rd6 {[%emt 0:04:53]} Qc7 {[%emt 0:03:11]} 26. R6d2 {[%emt 0:06:25]} Nbd7 {[%emt 0:01:53]} 27. Na4 {[%emt 0:05:42]} Bb7 {[%emt 0:02:16]} 28. Bh3 {[%emt 0:01:39]} Nf8 {[%emt 0:03:58]} 29. Nc5 {[%emt 0:00:13]} Bc8 {[%emt 0:00:43]} 30. Bxc8 {[%emt 0:01:04]} Raxc8 {[%emt 0:00:40]} 31. Nf3 {[%emt 0:00:49]} N6h7 {[%emt 0:03:22]} 32. Qc4 {[%emt 0:02:28]} Ng5 {[%emt 0:08:19]} 33. Nxg5 {[%emt 0:01:47]} hxg5 {[%emt 0:00:05]} 34. Rd6 {[%emt 0:04:06]} Red8 {[%emt 0:02:13]} 35. Rxd8 {[%emt 0:03:32]} Rxd8 {[%emt 0:00:12]} 36. Rxd8 {[%emt 0:00:17]} Qxd8 {[%emt 0:00:05]} 37. Nd3 {[%emt 0:00:19]} Qd6 {[%emt 0:01:35]} 38. b4 {[%emt 0:02:09]} axb4 {[%emt 0:02:18]} 39. Nxb4 {[%emt 0:01:28]} c5 {[%emt 0:00:55]} 40. Qd5 {[%emt 0:05:32]} Qc7 {[%emt 0:03:05]} 41. Qc6 {[%emt 0:36:24]} Qa5 {[%emt 0:08:45]} 42. Nd3 {[%emt 0:00:00]} Qd2 {[%emt 0:01:06]} 43. Qd5 {[%emt 0:00:00]} g4 {[%emt 0:02:09]} 1/2-1/2

[Event "DFMMLV 2019"]
[Site "Braunfels"]
[Date "2019.06.21"]
[Round "2.29"]
[White "Franzenburg, Maria"]
[Black "Schmidt, Andrea"]
[Result "0-1"]
[ECO "A02"]
[WhiteElo "1860"]
[BlackElo "2006"]
[Annotator "NA RC"]
[PlyCount "90"]
[EventDate "2019.06.20"]
[EventType "team-tourn"]
[EventCountry "GER"]
[SourceTitle "playchess.com"]
[Source "ChessBase"]
[SourceQuality "1"]
[WhiteTeam "Schleswig Holstein"]
[BlackTeam "NRW"]
[TimeControl "40/5400+30:1800+30"]

1. f4 {[%emt 0:00:03]} Nf6 {[%emt 0:02:23]} 2. Nf3 {[%emt 0:00:38]} Nc6 {[%emt 0:06:11]} 3. g3 {[%emt 0:01:38]} d6 {[%emt 0:04:24]} 4. Bg2 {[%emt 0:00:17]} g6 {[%emt 0:01:44]} 5. O-O {[%emt 0:01:00]} Bg7 {[%emt 0:00:04]} 6. d3 {[%emt 0:01:32]} Bg4 {[%emt 0:04:59]} 7. Qe1 {[%emt 0:02:03]} Qc8 {[%emt 0:02:51]} 8. e4 {[%emt 0:03:08]} Bxf3 {[%emt 0:03:55]} 9. Bxf3 {[%emt 0:01:33]} Nd4 {[%emt 0:01:37]} 10. Na3 {[%emt 0:01:59]} Nxf3+ {[%emt 0:03:39]} 11. Rxf3 {[%emt 0:00:08]} Qh3 {[%emt 0:06:47]} 12. Qf1 {[%emt 0:02:53]} Qxf1+ {[%emt 0:02:03]} 13. Rxf1 {[%emt 0:00:45]} a6 {[%emt 0:00:50]} 14. c3 {[%emt 0:00:45]} O-O {[%emt 0:02:07]} 15. Nc2 {[%emt 0:01:19]} e6 {[%emt 0:02:29]} 16. Bd2 {[%emt 0:02:37]} Nd7 17. Rf3 {[%emt 0:08:10]} f5 {[%emt 0:07:09]} 18. exf5 {[%emt 0:03:45]} exf5 {[%emt 0:00:58]} 19. Re1 {[%emt 0:03:19]} Rfe8 {[%emt 0:00:41]} 20. Rfe3 {[%emt 0:01:39]} Kf7 {[%emt 0:01:38]} 21. Rxe8 {[%emt 0:01:12]} Rxe8 {[%emt 0:00:06]} 22. Rxe8 {[%emt 0:00:04]} Kxe8 {[%emt 0:00:04]} 23. Be3 {[%emt 0:01:18]} Ke7 {[%emt 0:02:36]} 24. Kf2 {[%emt 0:04:18]} Nf6 {[%emt 0:05:36]} 25. h3 {[%emt 0:01:06]} Nd7 {[%emt 0:05:18]} 26. Kf3 {[%emt 0:02:20]} d5 {[%emt 0:02:20]} 27. Ke2 {[%emt 0:03:36]} Ke6 {[%emt 0:05:11]} 28. Kd2 {[%emt 0:02:19]} c5 {[%emt 0:04:05]} 29. a4 {[%emt 0:06:38]} Bf6 {[%emt 0:01:15]} 30. Ne1 {[%emt 0:08:30]} d4 {[%emt 0:05:38]} 31. cxd4 {[%emt 0:01:25]} cxd4 {[%emt 0:00:14]} 32. Bf2 {[%emt 0:00:59]} Nc5 {[%emt 0:00:27]} 33. Nc2 {[%emt 0:01:31]} Nxa4 {[%emt 0:02:21]} 34. Nxd4+ {[%emt 0:07:37]} Kd5 {[%emt 0:01:40]} 35. b3 {[%emt 0:01:39]} Nc5 {[%emt 0:02:56]} 36. Kc3 {[%emt 0:01:24]} Nd7 {[%emt 0:01:01]} 37. g4 {[%emt 0:01:39]} Nb8 {[%emt 0:00:34]} 38. Kc2 {[%emt 0:05:45]} Bxd4 {[%emt 0:00:11]} 39. Bg3 {[%emt 0:00:08]} Nc6 {[%emt 0:00:33]} 40. Bh4 {[%emt 0:03:11]} b5 {[%emt 0:00:43]} 41. Bg5 {[%emt 0:30:55]} Be3 {[%emt 0:31:32]} 42. Kc3 {[%emt 0:01:50]} b4+ {[%emt 0:00:44]} 43. Kc2 {[%emt 0:00:42]} Nd4+ {[%emt 0:00:59]} 44. Kb2 {[%emt 0:00:34]} Ne6 {[%emt 0:00:14]} 45. Be7 {[%emt 0:02:32]} Bc5 {[%emt 0:00:31]} 0-1

[Event "DFMMLV 2019"]
[Site "Braunfels"]
[Date "2019.06.21"]
[Round "2.30"]
[White "Hiebsch, Catalina"]
[Black "Mundt, Alexandra"]
[Result "1-0"]
[ECO "C42"]
[WhiteElo "1760"]
[BlackElo "1797"]
[Annotator "NA RC"]
[PlyCount "31"]
[EventDate "2019.06.20"]
[EventType "team-tourn"]
[EventCountry "GER"]
[SourceTitle "playchess.com"]
[Source "ChessBase"]
[SourceQuality "1"]
[WhiteTeam "NRW"]
[BlackTeam "Schleswig Holstein"]
[TimeControl "40/5400+30:1800+30"]

1. e4 {[%emt 0:00:00]} e5 {[%emt 0:00:00]} 2. Nf3 {[%emt 0:00:00]} Nf6 {[%emt 0:00:00]} 3. Nc3 {[%emt 0:01:16]} Bb4 {[%emt 0:00:13]} 4. Bc4 {[%emt 0:02:02]} d6 {[%emt 0:00:50]} 5. d3 {[%emt 0:01:03]} h6 {[%emt 0:00:19]} 6. Bd2 {[%emt 0:04:02]} Bg4 {[%emt 0:01:40]} 7. a3 {[%emt 0:03:22]} Ba5 {[%emt 0:02:21]} 8. h3 {[%emt 0:07:00]} Bh5 {[%emt 0:00:25]} 9. g4 {[%emt 0:04:25]} Bg6 {[%emt 0:00:07]} 10. Nh4 {[%emt 0:03:34]} Nxe4 {[%emt 0:06:56]} 11. Nxg6 {[%emt 0:01:22]} Nxc3 {[%emt 0:00:19]} 12. Qf3 {[%emt 0:01:11]} d5 {[%emt 0:00:59]} 13. Nxh8 {[%emt 0:01:36]} Qd7 {[%emt 0:07:04]} 14. Bb3 {[%emt 0:04:55]} Ne4 {[%emt 0:12:47]} 15. Bxa5 {[%emt 0:04:14]} Nf6 {[%emt 0:00:46]} 16. Qf5 {[%emt 0:04:15]} 1-0

[Event "DFMMLV 2019"]
[Site "Braunfels"]
[Date "2019.06.21"]
[Round "2.31"]
[White "Freter, Anke"]
[Black "Hoerhold, Karola"]
[Result "1/2-1/2"]
[ECO "C71"]
[WhiteElo "1856"]
[BlackElo "1727"]
[Annotator "NA RC"]
[PlyCount "67"]
[EventDate "2019.06.20"]
[EventType "team-tourn"]
[EventCountry "GER"]
[SourceTitle "playchess.com"]
[Source "ChessBase"]
[SourceQuality "1"]
[WhiteTeam "Schleswig Holstein"]
[BlackTeam "NRW"]
[TimeControl "40/5400+30:1800+30"]

1. e4 {[%emt 0:00:00]} e5 {[%emt 0:00:00]} 2. Nf3 {[%emt 0:00:00]} Nc6 {[%emt 0:00:00]} 3. Bb5 {[%emt 0:00:00]} a6 {[%emt 0:00:00]} 4. Ba4 {[%emt 0:00:00]} d6 {[%emt 0:00:00]} 5. d4 {[%emt 0:01:01]} b5 {[%emt 0:00:41]} 6. Bb3 {[%emt 0:00:06]} Nxd4 {[%emt 0:00:45]} 7. Nxd4 {[%emt 0:00:46]} exd4 {[%emt 0:00:13]} 8. Bd5 {[%emt 0:04:10]} Rb8 {[%emt 0:06:00]} 9. Bc6+ {[%emt 0:13:23]} Bd7 {[%emt 0:00:35]} 10. Bxd7+ {[%emt 0:00:10]} Qxd7 {[%emt 0:00:08]} 11. Qxd4 {[%emt 0:01:12]} Ne7 {[%emt 0:14:41]} 12. O-O {[%emt 0:09:23]} Nc6 {[%emt 0:00:56]} 13. Qd1 {[%emt 0:01:44]} Be7 {[%emt 0:05:33]} 14. Nc3 {[%emt 0:04:48]} O-O {[%emt 0:02:39]} 15. Nd5 {[%emt 0:01:34]} Rfe8 {[%emt 0:01:02]} 16. Be3 {[%emt 0:07:19]} Bf8 {[%emt 0:04:13]} 17. f3 {[%emt 0:02:01]} Ne5 {[%emt 0:14:05]} 18. b3 {[%emt 0:05:52]} c6 {[%emt 0:10:21]} 19. Nf4 {[%emt 0:00:56]} f6 {[%emt 0:12:45]} 20. Qd2 {[%emt 0:07:26]} Qb7 {[%emt 0:07:20]} 21. a4 {[%emt 0:05:12]} b4 {[%emt 0:02:33]} 22. a5 {[%emt 0:01:43]} Rbd8 {[%emt 0:05:45]} 23. Ra4 {[%emt 0:13:19]} d5 {[%emt 0:03:18]} 24. exd5 {[%emt 0:00:31]} cxd5 {[%emt 0:00:15]} 25. Bb6 {[%emt 0:02:45]} Rd7 {[%emt 0:00:51]} 26. Rd1 {[%emt 0:01:02]} d4 {[%emt 0:01:18]} 27. Qf2 {[%emt 0:00:58]} Qc6 {[%emt 0:02:46]} 28. Ra2 {[%emt 0:03:16]} Rb8 {[%emt 0:01:38]} 29. Qe2 {[%emt 0:01:54]} Re8 {[%emt 0:00:14]} 30. Kf1 {[%emt 0:02:24]} Bc5 {[%emt 0:00:32]} 31. Bxc5 {[%emt 0:00:46]} Qxc5 {[%emt 0:00:15]} 32. Qd2 {[%emt 0:01:47]} Nc6 {[%emt 0:00:55]} 33. Nd3 {[%emt 0:01:52]} Qh5 {[%emt 0:00:26]} 34. h3 1/2-1/2

[Event "DFMMLV 2019"]
[Site "Braunfels"]
[Date "2019.06.21"]
[Round "2.32"]
[White "Haehnel, Andrea"]
[Black "Braeutigam, Katerina"]
[Result "0-1"]
[ECO "E15"]
[WhiteElo "1746"]
[BlackElo "1697"]
[Annotator "NA RC"]
[PlyCount "80"]
[EventDate "2019.06.20"]
[EventType "team-tourn"]
[EventCountry "GER"]
[SourceTitle "playchess.com"]
[Source "ChessBase"]
[SourceQuality "1"]
[WhiteTeam "NRW"]
[BlackTeam "Schleswig Holstein"]
[TimeControl "40/5400+30:1800+30"]

1. d4 {[%emt 0:00:00]} Nf6 {[%emt 0:00:00]} 2. c4 {[%emt 0:00:00]} e6 {[%emt 0:00:00]} 3. Nf3 {[%emt 0:00:02]} b6 {[%emt 0:00:00]} 4. g3 {[%emt 0:01:21]} Bb7 {[%emt 0:00:52]} 5. Bg2 {[%emt 0:00:22]} c5 {[%emt 0:01:55]} 6. O-O {[%emt 0:06:08]} d5 {[%emt 0:02:32]} 7. cxd5 {[%emt 0:01:07]} Bxd5 {[%emt 0:02:29]} 8. Nc3 {[%emt 0:00:26]} Bb7 {[%emt 0:01:08]} 9. Bf4 {[%emt 0:04:03]} Nc6 {[%emt 0:11:54]} 10. Nb5 {[%emt 0:05:43]} Rc8 {[%emt 0:11:18]} 11. dxc5 {[%emt 0:01:15]} Bxc5 {[%emt 0:04:54]} 12. Qxd8+ {[%emt 0:00:50]} Rxd8 {[%emt 0:05:41]} 13. Ne5 {[%emt 0:08:39]} Nxe5 {[%emt 0:11:27]} 14. Bxb7 {[%emt 0:00:50]} Ng6 {[%emt 0:04:25]} 15. Bc6+ {[%emt 0:01:37]} Ke7 {[%emt 0:00:58]} 16. Bc7 {[%emt 0:07:31]} Rd2 {[%emt 0:01:58]} 17. Nxa7 {[%emt 0:03:02]} Rxb2 {[%emt 0:10:47]} 18. a4 {[%emt 0:12:46]} Rxe2 {[%emt 0:03:28]} 19. Bf3 {[%emt 0:00:05]} Rc2 {[%emt 0:01:31]} 20. Rad1 {[%emt 0:00:49]} Ne8 {[%emt 0:07:54]} 21. Nc6+ {[%emt 0:01:11]} Kf8 {[%emt 0:04:25]} 22. Rd8 {[%emt 0:01:04]} f6 {[%emt 0:06:43]} 23. Kh1 {[%emt 0:06:22]} Ne7 {[%emt 0:02:45]} 24. Nb8 {[%emt 0:03:50]} Kf7 {[%emt 0:01:25]} 25. Rfd1 {[%emt 0:03:34]} Rxf2 {[%emt 0:00:34]} 26. Bc6 {[%emt 0:00:35]} Rg8 {[%emt 0:00:41]} 27. Bf4 {[%emt 0:12:29]} g5 {[%emt 0:00:20]} 28. Bc1 {[%emt 0:00:05]} Ng7 {[%emt 0:00:22]} 29. Rxg8 {[%emt 0:00:46]} Kxg8 {[%emt 0:00:06]} 30. Na6 {[%emt 0:00:29]} Nxc6 {[%emt 0:00:16]} 31. Nxc5 {[%emt 0:01:04]} bxc5 {[%emt 0:00:07]} 32. Be3 {[%emt 0:01:11]} Ra2 {[%emt 0:00:25]} 33. Rd6 {[%emt 0:00:39]} Ne5 {[%emt 0:00:28]} 34. Bxc5 {[%emt 0:00:22]} Nf3 {[%emt 0:00:18]} 35. Rd8+ {[%emt 0:02:07]} Kf7 {[%emt 0:00:18]} 36. Bg1 {[%emt 0:01:43]} Ra1 {[%emt 0:00:10]} 37. Kg2 {[%emt 0:00:20]} Nxg1 {[%emt 0:00:18]} 38. Rd2 {[%emt 0:00:17]} g4 {[%emt 0:00:29]} 39. a5 {[%emt 0:00:33]} Nf3 {[%emt 0:00:14]} 40. Rd7+ {[%emt 0:00:05]} Kg6 {[%emt 0:00:16]} 0-1

[Event "DFMMLV 2019"]
[Site "Braunfels"]
[Date "2019.06.21"]
[Round "2.34"]
[White "Mucha, Annegret"]
[Black "Todorova, Kalina"]
[Result "1-0"]
[ECO "A00"]
[WhiteElo "2050"]
[BlackElo "1796"]
[Annotator "NA RC"]
[PlyCount "71"]
[EventDate "2019.06.20"]
[EventType "team-tourn"]
[EventCountry "GER"]
[SourceTitle "playchess.com"]
[Source "ChessBase"]
[SourceQuality "1"]
[WhiteTeam "Thueringen"]
[BlackTeam "Bayern 2"]
[TimeControl "40/5400+30:1800+30"]

1. Nc3 {[%emt 0:00:00]} e6 {[%emt 0:00:11]} 2. e4 {[%emt 0:00:00]} c5 {[%emt 0:02:20]} 3. f4 {[%emt 0:04:25]} d6 {[%emt 0:03:57]} 4. Nf3 {[%emt 0:00:34]} Nc6 {[%emt 0:01:21]} 5. Bb5 {[%emt 0:03:59]} Bd7 {[%emt 0:07:12]} 6. a4 {[%emt 0:09:58]} a6 {[%emt 0:06:55]} 7. Bc4 {[%emt 0:01:16]} Qc7 {[%emt 0:04:11]} 8. d3 {[%emt 0:02:02]} Nf6 {[%emt 0:04:47]} 9. O-O {[%emt 0:01:02]} Be7 {[%emt 0:10:01]} 10. Qe1 {[%emt 0:17:30]} Nb4 {[%emt 0:17:47]} 11. Bb3 {[%emt 0:02:18]} O-O-O {[%emt 0:05:06]} 12. e5 {[%emt 0:04:43]} Nfd5 {[%emt 0:02:08]} 13. Ne4 {[%emt 0:02:06]} f6 {[%emt 0:05:24]} 14. exd6 {[%emt 0:08:54]} Bxd6 {[%emt 0:00:08]} 15. Nxd6+ {[%emt 0:00:07]} Qxd6 {[%emt 0:00:04]} 16. Nd2 {[%emt 0:01:45]} Rhe8 {[%emt 0:07:00]} 17. Ne4 {[%emt 0:03:10]} Qc7 {[%emt 0:03:59]} 18. Qg3 {[%emt 0:01:53]} f5 {[%emt 0:03:20]} 19. Ng5 {[%emt 0:01:56]} Re7 {[%emt 0:01:52]} 20. Nxh7 {[%emt 0:01:51]} Nf6 {[%emt 0:00:13]} 21. Ng5 {[%emt 0:06:12]} Nbd5 {[%emt 0:01:35]} 22. Bd2 {[%emt 0:03:43]} Bc6 {[%emt 0:03:56]} 23. Bxd5 {[%emt 0:01:47]} Nxd5 {[%emt 0:01:52]} 24. Rae1 {[%emt 0:03:59]} Qb6 {[%emt 0:02:07]} 25. Nxe6 {[%emt 0:05:10]} Rde8 {[%emt 0:00:09]} 26. Nxg7 {[%emt 0:02:45]} Rxe1 27. Rxe1 {[%emt 0:00:33]} Rg8 {[%emt 0:01:48]} 28. Qg6 {[%emt 0:00:37]} Qd8 {[%emt 0:02:22]} 29. Qxf5+ {[%emt 0:02:45]} Kb8 {[%emt 0:00:08]} 30. Qe5+ {[%emt 0:01:26]} Ka7 {[%emt 0:00:33]} 31. g3 {[%emt 0:02:39]} Qb6 {[%emt 0:01:16]} 32. c4 {[%emt 0:00:45]} Nb4 {[%emt 0:00:17]} 33. Bxb4 {[%emt 0:00:34]} Qxb4 {[%emt 0:00:26]} 34. Ne6 {[%emt 0:00:09]} Re8 {[%emt 0:00:52]} 35. Kf2 {[%emt 0:00:57]} Bd7 {[%emt 0:00:58]} 36. Qxc5+ {[%emt 0:00:23]} 1-0